fUST/lending_fUST_20260528
["ID","MTS","AMOUNT","RATE_DAILY","PERIOD"]
[423227365,1779954644000,-6181.71379232,0.0001835,2]
[423227381,1779954644000,-160.0,0.00018738,7]
[423227371,1779954644000,-6181.71379232,0.0001835,2]
[423227369,1779954644000,-6181.71379232,0.0001835,2]
[423227370,1779954644000,-6181.71379232,0.0001835,2]
[423227368,1779954644000,-6181.71379232,0.0001835,2]
[423227373,1779954644000,-519.60536412,0.00018388,2]
[423227376,1779954644000,-824.0,0.00018534,2]
[423227372,1779954644000,-6181.71379232,0.0001835,2]
[423227375,1779954644000,-405.09486,0.00018493,2]
[423227377,1779954644000,-279.46198,0.00018628,2]
[423227382,1779954644000,-800.0,0.00018758,2]
[423227380,1779954644000,-800.0,0.00018691,2]
[423227388,1779954644000,-852.79047778,0.00019106,2]
[423227384,1779954644000,-800.0,0.00019003,2]
[423227378,1779954644000,-401.8176753,0.00018628,2]
[423227374,1779954644000,-800.0,0.00018481,2]
[423227415,1779954644000,-812.0696714,0.00019353,2]
[423227436,1779954644000,-158.73300119,0.00019451,2]
[423227414,1779954644000,-560.0508668,0.00019353,2]
[423227450,1779954644000,-1982.23672182,0.00019451,60]
[423227451,1779954644000,-1416.18027825,0.00019451,2]
[423227460,1779954644000,-1610.25936163,0.00019451,30]
[423227455,1779954644000,-190.80710371,0.00019451,30]
[423227456,1779954644000,-660.16592787,0.00019451,2]
[423227454,1779954644000,-2671.03352516,0.00019451,120]
[423227449,1779954644000,-191.73723194,0.00019451,2]
[423227452,1779954644000,-1211.59656445,0.00019451,2]
[423227412,1779954644000,-150.97,0.00019346,2]
[423227458,1779954644000,-390.78151873,0.00019451,2]
[423227459,1779954644000,-204.08626676,0.00019451,2]
[423227457,1779954644000,-2920.0,0.00019451,2]
[423227461,1779954644000,-3191.67783554,0.00019451,2]
[423227462,1779954644000,-1000.0,0.00019451,30]
[423227464,1779954644000,-152.3831933,0.00019451,2]
[423227469,1779954644000,-240.67657455,0.00019451,120]
[423227472,1779954644000,-1041.75888096,0.00019451,30]
[423227466,1779954644000,-262.12502965,0.00019451,2]
[423227470,1779954644000,-159.12203159,0.00019451,120]
[423227468,1779954644000,-1258.04405431,0.00019451,60]
[423227465,1779954644000,-3820.52258973,0.00019451,2]
[423227471,1779954644000,-678.4683992,0.00019451,2]
[423227467,1779954644000,-200.03685661,0.00019451,30]
[423227463,1779954644000,-1058.66000829,0.00019451,60]
[423227473,1779954644000,-328.16007989,0.00019451,2]
[423227474,1779954644000,-329.99318362,0.00019451,2]
[423227475,1779954644000,-161.11315405,0.00019451,30]
[423227448,1779954644000,-1176.91201908,0.00019451,30]
[423227447,1779954644000,-474.28831952,0.00019451,2]
[423227453,1779954644000,-1261.05768633,0.00019451,30]
[423227444,1779954644000,-514.56631423,0.00019451,2]
[423227419,1779954644000,-160.0,0.00019366,120]
[423227417,1779954644000,-173.09,0.00019366,2]
[423227438,1779954644000,-6384.49429397,0.00019451,2]
[423227420,1779954644000,-175.93783014,0.00019366,120]
[423227421,1779954644000,-500.0,0.00019379,2]
[423227422,1779954644000,-200.0,0.00019384,120]
[423227423,1779954644000,-173.09,0.00019393,2]
[423227425,1779954644000,-173.09,0.00019421,2]
[423227427,1779954644000,-150.97,0.00019446,2]
[423227424,1779954644000,-150.97,0.00019396,2]
[423227426,1779954644000,-271.6619212,0.00019437,2]
[423227429,1779954644000,-310.43931737,0.0001945,6]
[423227428,1779954644000,-173.09,0.00019448,2]
[423227418,1779954644000,-14969.58201233,0.00019366,120]
[423227432,1779954644000,-154.0,0.0001945,120]
[423227430,1779954644000,-156.0,0.0001945,120]
[423227445,1779954644000,-186.59693071,0.00019451,31]
[423227446,1779954644000,-200.0,0.00019451,120]
[423227443,1779954644000,-589.33225239,0.00019451,2]
[423227441,1779954644000,-1965.61487087,0.00019451,30]
[423227439,1779954644000,-159.70717815,0.00019451,2]
[423227440,1779954644000,-2300.0,0.00019451,120]
[423227437,1779954644000,-712.17421516,0.00019451,2]
[423227435,1779954644000,-1380.4957059,0.00019451,2]
[423227433,1779954644000,-45274.39476843,0.00019451,2]
[423227431,1779954644000,-3462.0,0.0001945,120]
[423227434,1779954644000,-645.97044167,0.00019451,2]
[423227442,1779954644000,-2826.05261805,0.00019451,120]
[423227491,1779954645000,-400.0,0.00019451,30]
[423227498,1779954645000,-400.0,0.00019451,30]
[423227490,1779954645000,-400.0,0.00019451,30]
[423227488,1779954645000,-400.0,0.00019451,30]
[423227493,1779954645000,-400.0,0.00019451,30]
[423227496,1779954645000,-400.0,0.00019451,30]
[423227495,1779954645000,-400.0,0.00019451,30]
[423227492,1779954645000,-400.0,0.00019451,30]
[423227489,1779954645000,-400.0,0.00019451,30]
[423227494,1779954645000,-400.0,0.00019451,30]
[423227481,1779954645000,-389.15888694,0.00019451,30]
[423227485,1779954645000,-400.0,0.00019451,30]
[423227483,1779954645000,-6799.46202264,0.00019451,2]
[423227484,1779954645000,-151.0,0.00019451,120]
[423227479,1779954645000,-420.0,0.00019451,30]
[423227480,1779954645000,-1300.0,0.00019451,2]
[423227482,1779954645000,-500.0,0.00019451,5]
[423227478,1779954645000,-160.0,0.00019451,2]
[423227477,1779954645000,-1057.75330523,0.00019451,2]
[423227476,1779954645000,-1279.65298304,0.00019451,30]
[423227486,1779954645000,-400.0,0.00019451,30]
[423227497,1779954645000,-400.0,0.00019451,30]
[423227487,1779954645000,-400.0,0.00019451,30]
[423227500,1779954645000,-400.0,0.00019451,30]
[423227522,1779954645000,-68282.11455907,0.00019451,30]
[423227521,1779954645000,-172.18270164,0.00010927,2]
[423227520,1779954645000,-14685.2,0.00019451,30]
[423227515,1779954645000,-400.0,0.00019451,30]
[423227519,1779954645000,-182985.62601354,0.00019451,30]
[423227518,1779954645000,-487.02246902,0.00019451,120]
[423227517,1779954645000,-400.0,0.00019451,30]
[423227516,1779954645000,-400.0,0.00019451,30]
[423227514,1779954645000,-400.0,0.00019451,30]
[423227513,1779954645000,-400.0,0.00019451,30]
[423227512,1779954645000,-264.16620243,0.00019451,30]
[423227499,1779954645000,-309.47584981,0.00019451,30]
[423227509,1779954645000,-400.0,0.00019451,30]
[423227511,1779954645000,-400.0,0.00019451,30]
[423227502,1779954645000,-400.0,0.00019451,30]
[423227501,1779954645000,-400.0,0.00019451,30]
[423227503,1779954645000,-400.0,0.00019451,30]
[423227508,1779954645000,-400.0,0.00019451,30]
[423227510,1779954645000,-400.0,0.00019451,30]
[423227505,1779954645000,-400.0,0.00019451,30]
[423227504,1779954645000,-400.0,0.00019451,30]
[423227506,1779954645000,-400.0,0.00019451,30]
[423227507,1779954645000,-400.0,0.00019451,30]
[423227586,1779954649000,-902.98589321,0.00018,2]
[423227588,1779954649000,-1000.0,0.000185,2]
[423227585,1779954649000,-2013.91107831,0.0001764,2]
[423227589,1779954649000,-1000.0,0.00019,2]
[423227590,1779954649000,-4652.30067221,0.00019451,30]
[423227587,1779954649000,-354.60075079,0.00018,2]
[423227600,1779955290000,200.0,0.00018639,120]
[423227604,1779955350000,200.0,0.00018884,120]
[423227605,1779955410000,200.0,0.00018656,120]
[423227648,1779955531000,200.0,0.0001892,120]
[423227691,1779955831000,-896.05161928,8e-05,2]
[423227675,1779955831000,-151.0,7.76e-05,2]
[423227677,1779955831000,-207.05528406,7.999e-05,2]
[423227683,1779955831000,-92.94471594,7.999e-05,2]
[423227687,1779955831000,-1048.25,8e-05,2]
[423227684,1779955831000,-1116.66231227,8e-05,2]
[423227695,1779955831000,-67.22556161,8e-05,2]
[423227689,1779955831000,-1011.79212612,8e-05,2]
[423227697,1779955831000,-2835.44149253,8e-05,2]
[423227699,1779955831000,-568.91951347,8e-05,2]
[423227693,1779955831000,-860.01838072,8e-05,2]
[423227917,1779955843000,-500.0,0.00010799,2]
[423227921,1779955843000,-287.63458838,0.00010799,2]
[423227915,1779955843000,-500.0,0.00010799,2]
[423227914,1779955843000,-500.0,0.00010799,2]
[423227912,1779955843000,-500.0,0.00010799,2]
[423227919,1779955843000,-500.0,0.00010799,2]
[423227920,1779955843000,-443.22180724,0.00010799,2]
[423227935,1779955843000,-500.0,0.00010799,2]
[423227916,1779955843000,-500.0,0.00010799,2]
[423227924,1779955843000,-500.0,0.00010799,2]
[423227923,1779955843000,-500.0,0.00010799,2]
[423227937,1779955843000,-500.0,0.00010799,2]
[423227927,1779955843000,-500.0,0.00010799,2]
[423227926,1779955843000,-500.0,0.00010799,2]
[423227913,1779955843000,-500.0,0.00010799,2]
[423227918,1779955843000,-339.608657,0.00010799,2]
[423227887,1779955843000,-180.0,9.679e-05,2]
[423227909,1779955843000,-500.0,0.00010799,2]
[423227885,1779955843000,-337.33336629,8.045e-05,2]
[423227884,1779955843000,-4431.08048653,8e-05,2]
[423227886,1779955843000,-420.0,8.799e-05,2]
[423227897,1779955843000,-767.06633829,0.00010721,2]
[423227925,1779955843000,-500.0,0.00010799,2]
[423227888,1779955843000,-284.97046679,9.873e-05,2]
[423227889,1779955843000,-398.05337222,0.00010045,2]
[423227903,1779955843000,-500.0,0.00010799,2]
[423227895,1779955843000,-160.0,0.00010721,2]
[423227899,1779955843000,-500.0,0.00010799,2]
[423227893,1779955843000,-160.0,0.00010721,2]
[423227891,1779955843000,-1004.64867501,0.000107,2]
[423227905,1779955843000,-500.27538236,0.00010799,2]
[423227901,1779955843000,-500.0,0.00010799,2]
[423227907,1779955843000,-370.08141508,0.00010799,2]
[423227911,1779955843000,-500.0,0.00010799,2]
[423227928,1779955843000,-500.0,0.00010799,2]
[423227922,1779955843000,-500.0,0.00010799,2]
[423227931,1779955843000,-500.0,0.00010799,2]
[423227961,1779955843000,-500.0,0.00010799,2]
[423227963,1779955843000,-500.0,0.00010799,2]
[423227965,1779955843000,-500.0,0.00010799,2]
[423227966,1779955843000,-500.0,0.00010799,2]
[423227964,1779955843000,-500.0,0.00010799,2]
[423227960,1779955843000,-500.0,0.00010799,2]
[423227962,1779955843000,-500.0,0.00010799,2]
[423227967,1779955843000,-500.0,0.00010799,2]
[423227970,1779955843000,-500.0,0.00010799,2]
[423227973,1779955843000,-500.0,0.00010799,2]
[423227971,1779955843000,-500.0,0.00010799,2]
[423227975,1779955843000,-500.0,0.00010799,2]
[423227974,1779955843000,-500.0,0.00010799,2]
[423227929,1779955843000,-500.0,0.00010799,2]
[423227976,1779955843000,-500.0,0.00010799,2]
[423227959,1779955843000,-500.0,0.00010799,2]
[423227968,1779955843000,-500.0,0.00010799,2]
[423227972,1779955843000,-500.0,0.00010799,2]
[423227943,1779955843000,-500.0,0.00010799,2]
[423227957,1779955843000,-500.0,0.00010799,2]
[423227933,1779955843000,-500.0,0.00010799,2]
[423227945,1779955843000,-500.0,0.00010799,2]
[423227947,1779955843000,-500.0,0.00010799,2]
[423227939,1779955843000,-500.0,0.00010799,2]
[423227951,1779955843000,-500.0,0.00010799,2]
[423227949,1779955843000,-500.0,0.00010799,2]
[423227941,1779955843000,-500.0,0.00010799,2]
[423227953,1779955843000,-500.0,0.00010799,2]
[423227955,1779955843000,-500.0,0.00010799,2]
[423227956,1779955843000,-500.0,0.00010799,2]
[423227952,1779955843000,-500.0,0.00010799,2]
[423227954,1779955843000,-500.0,0.00010799,2]
[423227950,1779955843000,-500.0,0.00010799,2]
[423227958,1779955843000,-500.0,0.00010799,2]
[423227969,1779955843000,-500.0,0.00010799,2]
[423228021,1779955844000,-185.0,0.00012115,2]
[423228017,1779955844000,-1004.64867501,0.000116,2]
[423228016,1779955844000,-600.0,0.00011598,2]
[423228018,1779955844000,-1004.64867501,0.000117,2]
[423228015,1779955844000,-199.20847517,0.00011598,2]
[423228010,1779955844000,-500.0,0.00011598,2]
[423228011,1779955844000,-500.0,0.00011598,2]
[423228012,1779955844000,-500.0,0.00011598,2]
[423228014,1779955844000,-500.0,0.00011598,2]
[423228023,1779955844000,-203.105674,0.00012363,2]
[423228008,1779955844000,-500.0,0.00011598,2]
[423228013,1779955844000,-500.0,0.00011598,2]
[423228047,1779955844000,-500.0,0.00014536,2]
[423228033,1779955844000,-500.0,0.00014536,2]
[423228028,1779955844000,-662.33594806,0.000134,2]
[423228034,1779955844000,-500.0,0.00014536,2]
[423228031,1779955844000,-1000.0,0.00013699,2]
[423228026,1779955844000,-303.0,0.00013151,3]
[423228027,1779955844000,-662.33594806,0.000133,2]
[423228032,1779955844000,-519.49338409,0.00014045,2]
[423228025,1779955844000,-662.33594806,0.000131,2]
[423228022,1779955844000,-443.0,0.00012115,2]
[423228030,1779955844000,-500.09628746,0.00013698,2]
[423228029,1779955844000,-662.33594806,0.000135,2]
[423228036,1779955844000,-500.0,0.00014536,2]
[423228048,1779955844000,-500.0,0.00014536,2]
[423228009,1779955844000,-500.0,0.00011598,2]
[423228024,1779955844000,-662.33594806,0.00013,2]
[423228019,1779955844000,-500.0,0.00011999,2]
[423227988,1779955844000,-500.0,0.00010799,2]
[423228005,1779955844000,-1004.64867501,0.000115,2]
[423228046,1779955844000,-500.0,0.00014536,2]
[423227981,1779955844000,-500.0,0.00010799,2]
[423227980,1779955844000,-500.0,0.00010799,2]
[423227979,1779955844000,-500.0,0.00010799,2]
[423227977,1779955844000,-500.0,0.00010799,2]
[423227978,1779955844000,-500.0,0.00010799,2]
[423227983,1779955844000,-500.0,0.00010799,2]
[423227982,1779955844000,-500.0,0.00010799,2]
[423227986,1779955844000,-500.0,0.00010799,2]
[423227989,1779955844000,-500.0,0.00010799,2]
[423227994,1779955844000,-500.0,0.00010799,2]
[423227984,1779955844000,-500.0,0.00010799,2]
[423227993,1779955844000,-500.0,0.00010799,2]
[423228020,1779955844000,-458.77337816,0.00012045,2]
[423227985,1779955844000,-500.0,0.00010799,2]
[423227990,1779955844000,-500.0,0.00010799,2]
[423227991,1779955844000,-500.0,0.00010799,2]
[423227992,1779955844000,-235.59950585,0.00010799,2]
[423227997,1779955844000,-500.0,0.00010799,2]
[423227995,1779955844000,-500.0,0.00010799,2]
[423227996,1779955844000,-500.0,0.00010799,2]
[423228004,1779955844000,-1004.64867501,0.000114,2]
[423228007,1779955844000,-500.0,0.00011598,2]
[423227998,1779955844000,-500.0,0.00010799,2]
[423228003,1779955844000,-1004.64867501,0.000113,2]
[423228006,1779955844000,-500.0,0.00011598,2]
[423228001,1779955844000,-1004.64867501,0.00011,2]
[423228002,1779955844000,-1004.64867501,0.000112,2]
[423227987,1779955844000,-500.0,0.00010799,2]
[423228035,1779955844000,-500.0,0.00014536,2]
[423227999,1779955844000,-1004.64867501,0.000108,2]
[423228039,1779955844000,-310.8611061,0.00014536,2]
[423228076,1779955844000,-824.22850564,0.0001831,2]
[423228075,1779955844000,-824.22850564,0.0001831,2]
[423228081,1779955844000,-243.056916,0.00018493,2]
[423228077,1779955844000,-824.22850564,0.0001831,2]
[423228080,1779955844000,-824.22850564,0.0001838,2]
[423228083,1779955844000,-824.22850564,0.0001869,2]
[423228082,1779955844000,-3401.27,0.0001863,2]
[423228078,1779955844000,-824.22850564,0.0001831,2]
[423228084,1779955844000,-3401.27,0.00018904,2]
[423228086,1779955844000,-1342.60738554,0.00019062,2]
[423228079,1779955844000,-500.0,0.00018348,2]
[423228085,1779955844000,-824.22850564,0.00019,2]
[423228094,1779955844000,-151.0,0.000194,2]
[423228074,1779955844000,-824.22850564,0.0001831,2]
[423228095,1779955844000,-151.0,0.000194,2]
[423228097,1779955844000,-151.0,0.000194,2]
[423228087,1779955844000,-200.0,0.000191,2]
[423228089,1779955844000,-200.0,0.00019297,120]
[423228088,1779955844000,-3401.27,0.00019178,2]
[423228090,1779955844000,-452.0,0.000193,2]
[423228091,1779955844000,-824.22850564,0.0001931,2]
[423228092,1779955844000,-200.0,0.00019397,120]
[423228093,1779955844000,-151.0,0.000194,2]
[423228098,1779955844000,-160.0,0.0001941,120]
[423228099,1779955844000,-156.0,0.0001941,120]
[423228101,1779955844000,-154.0,0.0001941,120]
[423228100,1779955844000,-2770.0,0.0001941,120]
[423228037,1779955844000,-500.0,0.00014536,2]
[423228096,1779955844000,-151.0,0.000194,2]
[423228070,1779955844000,-824.22850564,0.0001831,2]
[423228000,1779955844000,-1004.64867501,0.000109,2]
[423228067,1779955844000,-185.0,0.00018115,2]
[423228038,1779955844000,-500.0,0.00014536,2]
[423228041,1779955844000,-500.0,0.00014536,2]
[423228040,1779955844000,-500.0,0.00014536,2]
[423228045,1779955844000,-500.0,0.00014536,2]
[423228044,1779955844000,-500.0,0.00014536,2]
[423228042,1779955844000,-500.0,0.00014536,2]
[423228043,1779955844000,-500.0,0.00014536,2]
[423228058,1779955844000,-174.0,0.00016438,3]
[423228059,1779955844000,-1000.0,0.00016755,5]
[423228052,1779955844000,-23588.72746939,0.00014811,3]
[423228051,1779955844000,-243.17022773,0.00014711,2]
[423228049,1779955844000,-500.0,0.00014536,2]
[423228055,1779955844000,-509.326,0.00015917,2]
[423228054,1779955844000,-185.0,0.00015115,2]
[423228050,1779955844000,-341.32993513,0.00014536,2]
[423228056,1779955844000,-767.06633829,0.00016,3]
[423228053,1779955844000,-243.056916,0.00015068,2]
[423228066,1779955844000,-198.06765775,0.00018081,2]
[423228073,1779955844000,-824.22850564,0.0001831,2]
[423228069,1779955844000,-824.22850564,0.0001831,2]
[423228063,1779955844000,-326.0859053,0.00017807,2]
[423228064,1779955844000,-640.93339595,0.00018045,2]
[423228062,1779955844000,-534.0,0.00016985,2]
[423228072,1779955844000,-824.22850564,0.0001831,2]
[423228060,1779955844000,-500.0,0.00016985,2]
[423228065,1779955844000,-253.6539694,0.00018081,2]
[423228071,1779955844000,-824.22850564,0.0001831,2]
[423228061,1779955844000,-500.0,0.00016985,2]
[423228057,1779955844000,-580.21339002,0.00016045,2]
[423228068,1779955844000,-824.22850568,0.0001831,2]
[423228107,1779955845000,-37023.44375631,0.0001941,30]
[423228105,1779955845000,-13604.19663239,0.0001941,30]
[423228106,1779955845000,-1343.32405583,0.0001941,30]
[423228103,1779955845000,-35789.69288737,0.0001941,30]
[423228102,1779955845000,-4176.40057174,0.0001941,30]
[423228108,1779955845000,-440.07357235,0.0001941,30]
[423228104,1779955845000,-7502.08123135,0.0001941,30]
[423228302,1779957031000,-500.0,7.599e-05,2]
[423228304,1779957031000,-500.0,7.599e-05,2]
[423228300,1779957031000,-397.0,7.599e-05,2]
[423228298,1779957031000,-300.0,7.599e-05,2]
[423228296,1779957031000,-301.53259421,7.599e-05,2]
[423228306,1779957032000,-371.95989568,7.599e-05,2]
[423228312,1779957032000,-500.0,7.599e-05,2]
[423228310,1779957032000,-500.0,7.599e-05,2]
[423228308,1779957032000,-500.0,7.599e-05,2]
[423228314,1779957032000,-500.0,7.599e-05,2]
[423228328,1779957032000,-164.933315,7.717e-05,2]
[423228321,1779957032000,-11066.57458327,7.6e-05,2]
[423228319,1779957032000,-761.12713517,7.6e-05,2]
[423228323,1779957032000,-1343.7500641,7.6e-05,2]
[423228325,1779957032000,-4694.02200261,7.6e-05,2]
[423228330,1779957032000,-3279.34689626,8e-05,2]
[423228316,1779957032000,-9612.64219269,7.6e-05,2]
[423228412,1779957038000,-160.0,0.00010662,2]
[423228411,1779957038000,-355.80846116,9.599e-05,2]
[423228403,1779957038000,-1720.65310374,8e-05,2]
[423228418,1779957038000,-13116.05570553,0.000113,2]
[423228416,1779957038000,-500.0,0.00011294,2]
[423228414,1779957038000,-160.0,0.00010795,2]
[423228405,1779957038000,-5000.0,8e-05,2]
[423228407,1779957038000,-500.0,8.219e-05,2]
[423228409,1779957038000,-500.0,8.493e-05,2]
[423228421,1779957038000,-410.08432812,0.00011599,2]
[423228434,1779957038000,-459.67855435,0.00012,2]
[423228423,1779957038000,-401.75077032,0.00011842,2]
[423228437,1779957038000,-4917.06329729,0.00012,2]
[423228425,1779957038000,-50092.64763113,0.000119,2]
[423228428,1779957038000,-315.93626167,0.000119,2]
[423228430,1779957038000,-2161.11090002,0.00012,2]
[423228419,1779957038000,-500.0,0.00011568,2]
[423228612,1779957040000,-3189.26375353,0.00012,2]
[423228613,1779957040000,-61.40908659,0.00012,2]
[423228615,1779957040000,-12503.81734818,0.00012,2]
[423228616,1779957040000,-4428.27203324,0.00012,2]
[423228617,1779957040000,-879.09189318,0.00012,2]
[423228614,1779957040000,-6625.51755511,0.00012,2]
[423228644,1779957043000,-10502.98590886,0.00012,2]
[423228654,1779957046000,-5000.0,0.0001188,2]
[423228655,1779957047000,-6859.48680107,0.00012,2]
[423229124,1779958232000,-1003.10873523,6.747e-05,2]
[423229134,1779958232000,-1052.0,6.747e-05,2]
[423229136,1779958232000,-464.89277689,6.747e-05,2]
[423229137,1779958232000,-3823.55668834,6.747e-05,2]
[423229138,1779958232000,-151.0,6.847e-05,2]
[423229144,1779958232000,-11065.63049481,6.917e-05,2]
[423229139,1779958232000,-295.51908246,6.882e-05,2]
[423229140,1779958232000,-300.0,6.916e-05,2]
[423229141,1779958232000,-300.0,6.916e-05,2]
[423229143,1779958232000,-300.0,6.916e-05,2]
[423229142,1779958232000,-1200.0,6.916e-05,2]
[423229219,1779958238000,-171.81931707,8e-05,2]
[423229221,1779958238000,-5000.0,8e-05,2]
[423229224,1779958238000,-500.0,8.219e-05,2]
[423229234,1779958238000,-211.35,8.219e-05,2]
[423229228,1779958238000,-500.0,8.219e-05,2]
[423229230,1779958238000,-500.0,8.219e-05,2]
[423229223,1779958238000,-5000.0,8e-05,2]
[423229213,1779958238000,-500.0,7.712e-05,2]
[423229238,1779958238000,-500.0,8.219e-05,2]
[423229240,1779958238000,-316.95,8.219e-05,2]
[423229242,1779958238000,-500.0,8.219e-05,2]
[423229244,1779958238000,-500.0,8.219e-05,2]
[423229250,1779958238000,-561.18762023,8.219e-05,2]
[423229226,1779958238000,-500.0,8.219e-05,2]
[423229217,1779958238000,-5637.3066652,7.713e-05,2]
[423229197,1779958238000,-8625.9557003,7.711e-05,2]
[423229195,1779958238000,-1211.44172772,7.711e-05,2]
[423229236,1779958238000,-500.0,8.219e-05,2]
[423229193,1779958238000,-1836.42318741,7.711e-05,2]
[423229211,1779958238000,-500.0,7.712e-05,2]
[423229209,1779958238000,-218.41153068,7.712e-05,2]
[423229205,1779958238000,-500.0,7.712e-05,2]
[423229207,1779958238000,-500.0,7.712e-05,2]
[423229201,1779958238000,-500.0,7.712e-05,2]
[423229199,1779958238000,-500.0,7.712e-05,2]
[423229203,1779958238000,-500.0,7.712e-05,2]
[423229189,1779958238000,-1680.0,7.607e-05,2]
[423229187,1779958238000,-420.0,7.607e-05,2]
[423229183,1779958238000,-238.55083869,6.917e-05,2]
[423229185,1779958238000,-162.748261,7.059e-05,2]
[423229215,1779958238000,-500.0,7.712e-05,2]
[423229246,1779958238000,-500.0,8.219e-05,2]
[423229191,1779958238000,-269.0,7.607e-05,2]
[423229252,1779958238000,-458.12,8.219e-05,2]
[423229298,1779958238000,-497.0,8.368e-05,2]
[423229290,1779958238000,-500.0,8.219e-05,2]
[423229292,1779958238000,-500.0,8.219e-05,2]
[423229305,1779958238000,-647.27,8.493e-05,2]
[423229302,1779958238000,-500.0,8.493e-05,2]
[423229296,1779958238000,-587.0,8.368e-05,2]
[423229286,1779958238000,-500.0,8.219e-05,2]
[423229300,1779958238000,-580.49,8.493e-05,2]
[423229307,1779958238000,-500.0,8.493e-05,2]
[423229309,1779958238000,-500.0,8.493e-05,2]
[423229313,1779958238000,-500.0,8.493e-05,2]
[423229315,1779958238000,-500.0,8.493e-05,2]
[423229311,1779958238000,-500.0,8.493e-05,2]
[423229259,1779958238000,-498.62,8.219e-05,2]
[423229304,1779958238000,-500.0,8.493e-05,2]
[423229288,1779958238000,-500.0,8.219e-05,2]
[423229294,1779958238000,-500.0,8.219e-05,2]
[423229279,1779958238000,-500.0,8.219e-05,2]
[423229277,1779958238000,-500.0,8.219e-05,2]
[423229254,1779958238000,-500.0,8.219e-05,2]
[423229257,1779958238000,-500.0,8.219e-05,2]
[423229265,1779958238000,-531.05,8.219e-05,2]
[423229248,1779958238000,-500.0,8.219e-05,2]
[423229267,1779958238000,-572.03528659,8.219e-05,2]
[423229269,1779958238000,-500.0,8.219e-05,2]
[423229263,1779958238000,-500.0,8.219e-05,2]
[423229284,1779958238000,-500.0,8.219e-05,2]
[423229282,1779958238000,-510.68,8.219e-05,2]
[423229273,1779958238000,-500.0,8.219e-05,2]
[423229261,1779958238000,-500.0,8.219e-05,2]
[423229275,1779958238000,-500.0,8.219e-05,2]
[423229271,1779958238000,-500.0,8.219e-05,2]
[423229280,1779958238000,-500.0,8.219e-05,2]
[423229328,1779958239000,-500.0,8.767e-05,2]
[423229323,1779958239000,-500.0,8.493e-05,2]
[423229319,1779958239000,-442.74920573,8.493e-05,2]
[423229321,1779958239000,-500.0,8.493e-05,2]
[423229317,1779958239000,-500.0,8.493e-05,2]
[423229325,1779958239000,-599.4868091,8.767e-05,2]
[423229330,1779958239000,-500.0,8.767e-05,2]
[423229329,1779958239000,-500.0,8.767e-05,2]
[423229327,1779958239000,-500.0,8.767e-05,2]
[423229333,1779958239000,-500.0,9.041e-05,2]
[423229331,1779958239000,-348.7125173,8.882e-05,2]
[423229338,1779958239000,-401.90595214,0.00010882,2]
[423229341,1779958239000,-171.81931707,0.00011642,2]
[423229335,1779958239000,-334.76,9.315e-05,2]
[423229343,1779958239000,-67232.83219676,0.00012,2]
[423229339,1779958239000,-171.0,0.000116,4]
[423229332,1779958239000,-511.37744405,9.023e-05,2]
[423229336,1779958239000,-160.0,0.00010638,2]
[423229334,1779958239000,-10000.0,9.123e-05,2]
[423229387,1779958240000,-267.77939956,0.00012,2]
[423229423,1779958352000,-500.0,6.916e-05,2]
[423229424,1779958352000,-500.0,6.916e-05,2]
[423229425,1779958352000,-500.0,6.916e-05,2]
[423229426,1779958352000,-500.0,6.916e-05,2]
[423229433,1779958352000,-500.0,6.916e-05,2]
[423229428,1779958352000,-500.0,6.916e-05,2]
[423229430,1779958352000,-500.0,6.916e-05,2]
[423229429,1779958352000,-500.0,6.916e-05,2]